bitfinex/quotes_ETHUSD_20251028
["timestamp","ask_amount","ask_price","bid_price","bid_amount"]
[1761669106153,0.01,4130.4,4129.2,0.63365323]
[1761669106351,2.42133471,4130.0,4128.8,0.84487098]
[1761669106537,0.01,4130.4,4128.9,2.341]
[1761669106759,2.42117724,4130.3,4129.1,2.42183526]
[1761669106958,0.01,4130.4,4129.0,2.5761]
[1761669106959,0.01,4130.4,4129.2,2.341]
[1761669107270,0.01,4130.4,4128.4,0.05]
[1761669107271,2.42113163,4130.3,4129.5,0.0225011]
[1761669107471,0.01,4130.4,4129.5,0.0225011]
[1761669107644,2.42154203,4129.6,4129.5,0.0225011]
[1761669107835,0.01,4130.4,4129.5,0.0225011]
[1761669108037,2.42154203,4129.6,4129.5,0.0225011]
[1761669108353,2.42154203,4129.6,4128.4,0.05]
[1761669108354,2.42212856,4128.6,4128.4,0.05]
[1761669108554,2.42218723,4128.5,4128.4,0.05]
[1761669108953,2.42212856,4128.6,4128.1,0.69991941]
[1761669109153,2.42252072,4128.0,4127.1,1e-08]
[1761669109395,2.42218723,4128.5,4127.1,1e-08]
[1761669109396,2.42295018,4127.2,4127.1,1e-08]
[1761669109669,2.90753145,4127.2,4127.1,1e-08]
[1761669110392,3.97738723,4128.5,4127.1,1e-08]
[1761669110393,2.42248062,4128.0,4127.1,1e-08]
[1761669110533,2.4225393,4127.9,4127.1,1e-08]
[1761669110735,2.42295018,4127.2,4127.1,1e-08]
[1761669111188,2.42215018,4127.2,4127.1,1e-08]
[1761669111959,2.4228676,4127.4,4127.1,1e-08]
[1761669112163,1.5552,4130.0,4127.1,1e-08]
[1761669112380,2.339,4128.7,4127.1,1e-08]
[1761669112537,0.2339,4128.6,4127.1,1e-08]
[1761669112741,1.5552,4128.8,4127.1,1e-08]
[1761669112937,2.338,4128.7,4127.1,1e-08]
[1761669113145,2.42270932,4127.7,4127.1,1e-08]
[1761669113359,2.42216391,4128.6,4127.1,1e-08]
[1761669113566,2.339,4128.5,4127.1,1e-08]
[1761669113770,2.42271537,4127.6,4127.1,1e-08]
[1761669113939,2.42295018,4127.2,4127.1,1e-08]
[1761669116778,6.31615018,4127.2,4127.1,1e-08]
[1761669117356,6.31515018,4127.2,4127.1,1e-08]
[1761669117689,3.97815018,4127.2,4127.1,1e-08]
[1761669117922,2.42295018,4127.2,4127.1,1e-08]
[1761669118105,3.8932,4127.2,4126.1,1e-08]
[1761669118315,2.42330213,4126.7,4126.1,1e-08]
[1761669118598,2.42394861,4125.5,4125.4,1e-08]
[1761669118755,6.80892994,4125.5,4125.4,1e-08]
[1761669118960,4.46392994,4125.5,4125.4,1e-08]
[1761669119397,6.80992994,4125.5,4125.4,1e-08]
[1761669119908,1.54684054,4125.4,4123.1,1e-08]
[1761669120086,2.42506547,4123.6,4122.1,1e-08]
[1761669120251,11.89120616,4123.7,4122.1,1e-08]
[1761669120252,2.42588908,4122.2,4122.1,1e-08]
[1761669120450,11.89120616,4124.8,4122.1,1e-08]
[1761669120794,2.4245363,4124.5,4122.1,1e-08]
[1761669120995,11.89120616,4124.2,4122.1,1e-08]
[1761669121166,2.42553642,4122.8,4122.1,1e-08]
[1761669121492,2.352,4123.1,4122.1,1e-08]
[1761669121719,0.47755363,4124.4,4122.1,1e-08]
[1761669121918,12.61448835,4125.3,4122.1,1e-08]
[1761669121919,1.5552,4124.2,4122.1,1e-08]
[1761669122220,2.42435242,4124.9,4123.5,2.42510293]
[1761669122406,11.89120616,4126.9,4122.3,13.44640616]
[1761669122407,0.01,4125.4,4122.3,13.44640616]
[1761669122615,0.05,4123.9,4122.5,0.405504]
[1761669122815,0.05,4123.9,4123.8,2.42494786]
[1761669122983,0.05,4123.9,4123.8,4.38565186]
[1761669123497,0.01,4124.4,4124.3,2.83015788]
[1761669123698,0.01,4124.4,4124.3,3.14621437]
[1761669123933,0.01,4124.4,4124.3,0.72156049]
[1761669124130,0.01,4124.4,4124.1,2.42474285]
[1761669124444,0.01,4124.4,4124.3,2.42465388]
[1761669125103,0.01,4124.4,4123.9,2.353]
[1761669125338,0.01,4124.4,4124.0,1.5552]
[1761669125512,0.01,4124.4,4124.3,2.42465388]
[1761669125688,0.01,4124.4,4122.4,11.94120616]
[1761669126021,0.01,4124.4,4122.6,2.42565371]
[1761669126332,0.01,4124.4,4122.4,11.94120616]
[1761669126333,0.01,4124.4,4122.4,0.05]
[1761669127346,2.42543972,4123.0,4122.4,0.05]
[1761669127491,2.42465388,4124.3,4122.4,0.05]
[1761669127684,1.95418539,4124.2,4122.4,0.05]
[1761669127943,2.42544342,4123.0,4122.4,0.05]
[1761669128098,1.95418539,4124.2,4122.4,0.05]
[1761669128099,2.355,4124.0,4122.4,0.05]
[1761669128742,2.42571255,4122.5,4122.4,0.05]
[1761669129518,2.355,4123.8,4122.4,0.05]
[1761669129719,1.5552,4123.5,4122.4,0.05]
[1761669129921,0.1208,4122.6,4122.4,0.05]
[1761669130323,1.26255816,4128.5,4122.4,0.05]
[1761669130324,1.5652,4124.4,4122.4,0.05]
[1761669130560,1.5652,4124.4,4122.5,0.1208]
[1761669130561,2.42500309,4123.8,4122.5,0.1208]
[1761669130861,0.01,4124.4,4122.4,0.05]
[1761669130862,0.01,4124.4,4122.9,2.42541863]
[1761669131063,0.01,4124.4,4123.0,0.24254186]
[1761669131356,0.01,4124.4,4122.4,0.05]
[1761669131654,2.42465388,4124.3,4122.4,0.05]
[1761669131854,2.42508195,4123.6,4122.4,0.05]
[1761669132053,0.01,4124.4,4122.4,0.05]
[1761669132254,2.4250617,4123.7,4122.4,0.05]
[1761669132417,2.353,4124.3,4122.4,0.45309745]
[1761669132623,2.353,4124.3,4122.4,0.05]
[1761669132824,2.363,4124.4,4122.7,2.42559299]
[1761669133055,2.42500153,4123.8,4122.8,2.42552398]
[1761669133325,2.4247726,4124.1,4122.4,0.05]
[1761669133538,2.42470855,4124.3,4123.2,2.42525429]
[1761669133757,0.7211231,4124.3,4123.2,2.42525429]
[1761669133931,2.42482583,4124.1,4123.1,2.42535518]
[1761669134131,0.01,4124.4,4123.1,2.42535518]
[1761669134132,0.01,4124.4,4123.2,0.024253]
[1761669134338,0.01,4124.4,4123.1,2.351]
[1761669134922,0.01,4124.4,4123.2,2.42530073]
[1761669135235,0.01,4124.4,4123.2,2.42529222]
[1761669135433,0.24345485,4124.3,4122.4,0.05]
[1761669135758,2.355,4124.2,4122.4,0.05]
[1761669135956,2.42535913,4123.2,4122.4,0.05]
[1761669136367,2.355,4124.2,4122.4,0.05]
[1761669136538,2.42541056,4123.1,4122.4,0.05]
[1761669136739,2.355,4124.2,4122.4,0.05]
[1761669136740,1.5552,4124.2,4122.4,0.05]
[1761669137077,2.4252072,4123.4,4122.4,0.05]
[1761669137270,2.60560241,4124.1,4122.4,0.05]
[1761669137572,2.42483026,4124.0,4122.4,0.05]
[1761669137876,2.42536448,4123.1,4122.4,0.05]
[1761669138173,2.42510366,4123.6,4122.4,0.05]
[1761669138465,2.42548816,4122.9,4122.4,0.05]
[1761669138623,0.24251037,4123.5,4122.4,0.05]
[1761669138962,2.42458254,4124.5,4122.4,0.05]
[1761669138963,2.42508135,4123.6,4122.4,0.05]
[1761669139162,0.24265485,4124.3,4122.4,0.05]
[1761669139379,1.5552,4124.0,4122.4,0.05]
[1761669139525,2.42535321,4123.2,4122.4,0.05]
[1761669139852,1.5552,4123.9,4122.5,0.002]
[1761669140036,4.95557329,4124.1,4122.5,0.002]
[1761669140037,2.42506547,4123.6,4122.5,0.002]
[1761669140236,1.5552,4123.7,4122.5,0.002]
[1761669140462,2.349,4123.6,4122.5,0.002]
[1761669140681,0.1208,4122.7,4122.5,0.002]
[1761669140985,0.011,4124.4,4122.6,0.02425653]
[1761669141182,0.1208,4123.9,4123.6,2.42502285]
[1761669141389,0.1208,4123.9,4122.9,2.42546345]
[1761669141675,0.1208,4123.9,4123.1,2.42530553]
[1761669141854,0.011,4124.4,4122.5,2.98237364]
[1761669141855,1.595,4124.2,4122.5,2.351]
[1761669142175,0.1208,4123.3,4122.9,2.42542565]
[1761669142474,0.1208,4123.2,4122.5,2.4718]
[1761669142678,0.1208,4123.2,4122.7,2.42559487]
[1761669142825,0.1208,4123.2,4122.8,2.42549755]
[1761669143155,0.1208,4123.2,4122.5,2.4718]
[1761669143339,0.1208,4123.2,4122.6,0.51203874]
[1761669144297,0.1208,4123.0,4122.5,4.77671136]
[1761669144465,0.1208,4123.0,4122.6,0.51235421]
[1761669145069,0.01,4125.4,4122.9,0.63137364]
[1761669145303,2.42469759,4124.3,4123.4,2.42518015]
[1761669145581,2.42425245,4125.0,4123.7,2.42494889]
[1761669145772,2.42434766,4124.9,4124.0,2.42483019]
[1761669145929,2.42413876,4125.2,4124.1,2.93711523]
[1761669146268,2.42429556,4125.0,4124.2,0.51235421]
[1761669146463,0.01,4125.4,4124.3,0.51235421]
[1761669146671,2.42431262,4124.9,4124.3,0.51235421]
[1761669146886,0.01,4125.4,4124.3,5.28200809]
[1761669147047,0.01,4125.4,4124.3,6.11581956]
[1761669147247,0.01,4125.4,4124.3,3.69116568]
[1761669147448,0.01,4125.4,4124.3,6.1362862]
[1761669147793,0.01,4125.4,4124.3,5.28200809]
[1761669149511,0.01,4125.4,4124.3,3.71055991]
[1761669149672,2.42418772,4125.1,4124.3,0.51235421]
[1761669149876,0.01,4125.4,4124.3,5.28300809]
[1761669150077,0.01,4125.4,4124.3,0.51235421]
[1761669150809,2.42431147,4124.9,4124.3,0.51235421]
[1761669151011,2.42424292,4125.0,4124.3,0.51235421]
[1761669151306,0.01,4125.4,4124.3,0.51235421]
[1761669151507,2.42406821,4125.3,4124.3,2.93700809]
[1761669152154,2.43402376,4125.4,4124.3,2.93700809]
[1761669152351,0.01,4125.4,4124.3,2.93700809]
[1761669152653,2.43403139,4125.4,4124.3,2.93700809]
[1761669152804,2.43400947,4125.4,4124.3,2.93700809]
[1761669153304,2.42418586,4125.1,4123.7,0.64003167]
[1761669153520,0.01,4125.4,4123.7,0.64003167]
[1761669153521,2.42447858,4124.6,4123.8,0.53664465]
[1761669153838,2.42458108,4124.5,4123.9,0.51239518]
[1761669154043,0.49700012,4124.4,4123.7,2.345]
[1761669154248,2.42493589,4123.9,4123.7,2.345]
[1761669154404,2.42493589,4123.9,4122.9,2.42546354]
[1761669154405,2.42516482,4123.5,4122.9,0.64003167]
[1761669154606,0.011,4124.4,4123.0,0.51279315]
[1761669154812,2.42478304,4124.1,4123.1,2.9381126]
[1761669155024,0.1208,4123.7,4123.2,0.51279315]
[1761669155223,0.1208,4123.7,4123.3,0.51279315]
[1761669155422,2.42517208,4123.5,4123.4,0.51279315]
[1761669155743,0.1208,4123.1,4123.0,0.02425418]
[1761669155920,0.011,4124.4,4123.0,0.51284643]
[1761669156119,0.1208,4123.3,4123.1,0.51284643]
[1761669156342,0.1208,4123.3,4123.2,0.51284643]
[1761669156708,0.1208,4123.3,4123.2,0.26284643]
[1761669157119,2.42541626,4123.1,4122.6,2.4628]
[1761669157323,0.1208,4122.6,4122.5,0.002]
[1761669159820,2.54645371,4122.6,4122.5,0.002]
[1761669160021,3.04285529,4122.6,4122.5,0.002]
[1761669160239,0.61720158,4122.6,4122.5,0.002]
[1761669160551,0.12,4122.6,4122.5,0.002]
[1761669160744,0.001,4123.2,4122.5,2.342]
[1761669160945,0.1208,4122.9,4122.5,2.342]
[1761669161133,0.001,4123.2,4122.6,0.02425653]
[1761669161446,0.001,4123.2,4123.1,2.42535955]
[1761669161610,0.001,4123.2,4123.1,4.88715955]
[1761669161810,0.001,4123.2,4123.1,2.4618]
[1761669162030,0.001,4123.2,4123.1,2.341]
[1761669162440,0.001,4123.2,4122.7,2.342]
[1761669162643,0.001,4123.2,4122.5,0.002]
[1761669162865,2.42536664,4123.1,4122.6,2.343]
[1761669163026,0.001,4123.2,4122.5,0.002]
[1761669163610,0.001,4123.2,4123.0,2.42537797]
[1761669163844,0.001,4123.2,4123.1,2.44961314]
[1761669164009,0.001,4123.2,4123.1,2.42535955]
[1761669164720,0.001,4123.2,4123.0,2.342]
[1761669165043,0.001,4123.2,4122.5,0.64203167]
[1761669165243,2.4263575,4123.2,4122.6,2.341]
[1761669165411,0.001,4123.2,4122.6,2.341]
[1761669165617,0.001,4123.2,4122.5,2.42766567]
[1761669165953,0.001,4123.2,4122.6,2.339]
[1761669166247,0.001,4123.2,4122.7,2.42559487]
[1761669166547,0.001,4123.2,4122.6,2.339]
[1761669167373,0.001,4123.2,4122.7,2.42556716]
[1761669167577,0.001,4123.2,4122.8,2.4255174]
[1761669168083,0.001,4123.2,4122.6,2.339]
[1761669168880,0.001,4123.2,4122.5,0.002]
[1761669169549,2.42635138,4123.2,4122.5,0.002]
[1761669169749,2.42541838,4123.0,4122.5,0.002]
[1761669169958,0.48515744,4123.1,4122.5,0.002]
[1761669170159,2.42565371,4122.6,4122.5,0.002]
[1761669170585,2.42555515,4122.8,4122.5,0.002]
[1761669170773,2.42565371,4122.6,4122.5,0.002]
[1761669172475,2.42548128,4122.9,4122.5,0.002]
[1761669172640,2.42565371,4122.6,4122.5,0.002]
[1761669178600,4.75065371,4122.6,4122.5,0.002]
[1761669178775,4.74865371,4122.6,4122.5,0.002]
[1761669180099,2.42565371,4122.6,4122.5,0.002]
[1761669180805,2.42565371,4122.6,4122.5,2.42765999]
[1761669180806,0.1208,4122.6,4122.5,2.42765999]
[1761669181005,0.1208,4122.6,4122.5,2.67562599]
[1761669181317,0.001,4122.8,4122.7,2.42559487]
[1761669181673,0.001,4122.8,4122.7,2.96431314]
[1761669181937,0.001,4122.8,4122.7,0.63526233]
[1761669182114,0.1208,4122.7,4122.5,0.002]
[1761669182528,0.1208,4122.7,4122.6,2.42565371]
[1761669182712,0.001,4122.8,4122.7,2.42559487]
[1761669182912,0.001,4122.8,4122.7,2.94067559]
[1761669183324,0.001,4123.2,4122.8,1.960704]
[1761669183600,0.011,4124.4,4123.5,0.405504]
[1761669183916,0.011,4124.4,4123.9,0.64338224]
[1761669184098,0.011,4124.4,4123.7,0.85784299]
[1761669184099,0.011,4124.4,4124.0,2.322]
[1761669184298,2.43561003,4124.4,4124.0,2.322]
[1761669184526,0.0102,4124.4,4124.0,2.322]
[1761669184711,0.0102,4124.4,4124.1,0.02424771]
[1761669184912,0.0102,4124.4,4124.3,2.42465388]
[1761669185138,0.0102,4124.4,4124.3,3.19326069]
[1761669185323,0.0102,4124.4,4123.3,0.64338224]
[1761669185532,0.0102,4124.4,4122.8,1.28676449]
[1761669185533,0.0102,4124.4,4122.6,1.18543249]
[1761669185842,2.42465388,4124.3,4122.4,0.05]
[1761669186040,2.42477146,4124.1,4122.4,0.05]
[1761669186339,2.323,4124.0,4122.4,0.05]
[1761669186542,2.42494786,4123.8,4122.4,0.05]
[1761669186708,1.5552,4123.7,4122.4,0.05]
[1761669186904,0.38782,4123.7,4122.4,0.05]
[1761669187432,2.42529377,4123.3,4122.4,2.4757579]
[1761669187744,2.42543297,4123.0,4122.4,0.05]
[1761669187939,2.42497356,4123.8,4122.4,0.05]
[1761669187940,2.42446587,4124.7,4122.4,0.05]
[1761669188168,2.32,4125.0,4122.6,0.51466222]
[1761669188438,4.7442939,4125.0,4122.7,0.18862326]
[1761669188639,2.42481844,4124.1,4123.2,2.42524975]
[1761669188847,2.42457963,4124.5,4123.3,2.44947893]
[1761669189146,2.4247733,4124.1,4123.3,2.42522652]
[1761669189543,2.43402271,4125.4,4123.2,2.42527636]
[1761669189873,2.4244068,4124.8,4122.9,2.32]
[1761669190029,2.3302,4124.4,4122.5,0.67818813]
[1761669190234,1.78822,4124.3,4122.6,0.51470942]
[1761669190468,2.4249163,4123.9,4122.6,2.42564438]
[1761669190669,0.23302,4124.3,4122.7,0.51479241]
[1761669190670,2.42469692,4124.3,4122.7,0.51479241]
[1761669190854,0.0102,4124.4,4123.4,2.42517621]
[1761669191031,0.0102,4124.4,4123.6,2.42504563]
[1761669191236,0.0102,4124.4,4123.6,0.24250456]
[1761669191433,0.0102,4124.4,4123.9,0.64338224]
[1761669191672,0.0102,4124.4,4124.3,2.42465388]
[1761669191836,0.0102,4124.4,4124.3,5.25988731]
[1761669192045,0.0102,4124.4,4124.3,2.93888731]
[1761669192250,0.0102,4124.4,4124.3,0.53636215]
[1761669192553,0.0102,4124.4,4124.2,2.321]
[1761669192887,0.0102,4124.4,4124.3,2.42465388]
[1761669193359,0.0102,4124.4,4124.3,2.54545388]
[1761669194490,0.0102,4124.4,4124.3,2.42465388]
[1761669194705,0.0102,4124.4,4124.3,3.14169522]
[1761669194856,0.0102,4124.4,4124.3,3.65527717]
[1761669195044,0.0102,4124.4,4124.3,3.14169522]
[1761669195577,0.0102,4124.4,4124.3,2.318]
[1761669195956,0.0102,4124.4,4123.6,2.66755552]
[1761669196152,0.0102,4124.4,4124.0,2.42479519]
[1761669196482,0.0102,4124.4,4124.1,0.02424771]
[1761669196649,0.0102,4124.4,4124.3,2.42465388]
[1761669197180,0.0102,4124.4,4123.8,2.316]
[1761669197382,0.0102,4124.4,4123.9,0.49835311]
[1761669197559,0.0102,4124.4,4124.3,2.42465388]
[1761669197889,0.0102,4124.4,4123.1,0.64338224]
[1761669198198,0.0102,4124.4,4123.1,2.315]
[1761669198551,2.42465388,4124.3,4123.1,2.315]
[1761669198748,2.42511855,4123.6,4123.1,2.315]
[1761669198978,0.25366197,4124.4,4123.1,2.315]
[1761669199567,2.42465388,4124.3,4123.1,2.315]
[1761669199761,2.42507272,4123.6,4123.1,2.315]
[1761669199991,0.0102,4124.4,4123.1,2.315]
[1761669200290,2.43482876,4124.4,4123.3,2.42519311]
[1761669200498,0.0102,4124.4,4123.1,2.315]
[1761669200707,2.4249969,4123.8,4123.1,2.315]
[1761669200857,2.42465899,4124.3,4123.3,2.42519331]
[1761669201056,2.42465388,4124.3,4123.1,2.315]
[1761669201380,0.25366505,4124.4,4123.1,2.315]
[1761669201587,2.42497255,4123.8,4123.1,2.315]
[1761669201757,2.67827159,4124.4,4123.1,2.315]
[1761669201957,2.42513304,4123.5,4122.6,0.002]
[1761669202168,1.5552,4123.7,4122.6,0.002]
[1761669202391,2.42559487,4122.7,4122.6,0.002]
[1761669204165,4.38629887,4122.7,4122.6,0.002]
[1761669204365,4.50715771,4122.6,4122.5,1e-08]
[1761669205721,6.82015771,4122.6,4122.5,1e-08]
[1761669205923,6.82015771,4122.6,4121.8,1e-08]
[1761669206122,4.38676964,4121.9,4121.8,1e-08]
[1761669206326,3.98126564,4121.9,4121.8,1e-08]
[1761669206639,2.312,4122.2,4121.8,1e-08]
[1761669206795,2.42606564,4121.9,4121.8,1e-08]
[1761669207132,3.98126564,4121.9,4121.8,1e-08]
[1761669207335,6.29526564,4121.9,4121.8,1e-08]
[1761669207507,6.70076964,4121.9,4121.8,1e-08]
[1761669208431,4.38676964,4121.9,4121.8,1e-08]
[1761669208633,6.53123072,4121.9,4121.8,1e-08]
[1761669208853,8.84523072,4121.9,4121.8,1e-08]
[1761669209148,8.84443072,4121.9,4121.8,1e-08]
[1761669209296,8.84443072,4121.9,4121.1,1e-08]
[1761669209297,17.46381607,4121.2,4121.1,1e-08]
[1761669209502,21.33101607,4121.2,4121.1,1e-08]
[1761669209747,23.68756137,4121.2,4121.1,1e-08]
[1761669210043,9.05772702,4121.2,4121.1,1e-08]
[1761669210195,6.70118172,4121.2,4121.1,1e-08]
[1761669212128,4.38718172,4121.2,4121.1,1e-08]
[1761669212326,6.70318172,4121.2,4121.1,1e-08]
[1761669212921,2.83257064,4120.2,4119.4,0.05]
[1761669213268,6.70377064,4120.2,4120.1,1e-08]
[1761669213434,2.42718446,4120.0,4119.1,0.01]
[1761669213633,3.98285585,4119.2,4119.1,1e-08]
[1761669213834,2.32,4119.2,4119.1,1e-08]
[1761669214017,2.42753954,4119.4,4119.1,1e-08]
[1761669214340,3.8752,4119.3,4119.1,1e-08]
[1761669214541,0.68147544,4120.2,4119.1,1e-08]
[1761669214542,2.23667544,4120.2,4119.1,1e-08]
[1761669214741,1.5552,4120.0,4119.1,1e-08]
[1761669214941,2.42760502,4119.3,4119.1,1e-08]
[1761669215145,0.68147544,4120.2,4119.1,1e-08]
[1761669215330,0.405504,4119.9,4119.1,1e-08]
[1761669215509,2.42765585,4119.2,4119.1,1e-08]
[1761669215712,3.98285585,4119.2,4119.1,1e-08]
[1761669215936,4.38835985,4119.2,4119.1,1e-08]
[1761669216869,6.70835985,4119.2,4119.1,1e-08]
[1761669217078,9.06490515,4119.2,4119.1,1e-08]
[1761669217866,8.98970515,4119.2,4119.1,1e-08]
[1761669218238,8.98970515,4119.2,4119.1,0.00200001]
[1761669218436,2.83345456,4118.7,4118.6,1e-08]
[1761669218669,21.33848891,4118.7,4118.6,1e-08]
[1761669218870,6.39324372,4118.7,4118.6,1e-08]
[1761669219047,6.70665456,4118.7,4118.6,1e-08]
[1761669219759,6.70565456,4118.7,4118.6,1e-08]
[1761669219966,3.98315056,4118.7,4118.6,1e-08]
[1761669220162,6.70465456,4118.7,4118.6,1e-08]
[1761669220561,4.38865456,4118.7,4118.6,1e-08]
[1761669220870,6.29815056,4118.7,4118.6,1e-08]
[1761669221178,4.38865456,4118.7,4118.6,1e-08]
[1761669221380,3.98315056,4118.7,4118.6,1e-08]
[1761669221577,6.29815056,4118.7,4118.6,1e-08]
[1761669223421,6.29615056,4118.7,4118.6,1e-08]
[1761669223775,7.1685526,4118.7,4118.6,1e-08]
[1761669224897,7.5740566,4118.7,4118.6,1e-08]
[1761669226188,5.2610566,4118.7,4118.6,1e-08]
[1761669226512,7.1645526,4118.7,4118.6,1e-08]
[1761669226717,7.5700566,4118.7,4118.6,1e-08]
[1761669227078,6.29115056,4118.7,4118.6,1e-08]
[1761669227417,3.98315056,4118.7,4118.6,1e-08]
[1761669227587,2.42788073,4118.9,4118.6,1e-08]
[1761669227925,3.98315056,4118.7,4118.6,1e-08]
[1761669228412,6.69465456,4118.7,4118.6,1e-08]
[1761669228576,7.60690455,4118.7,4118.6,1e-08]
[1761669230110,7.20140055,4118.7,4118.6,1e-08]
[1761669230412,7.60690455,4118.7,4118.6,1e-08]
[1761669231908,7.60690455,4118.7,4118.6,1e-08]
[1761669232090,5.30090455,4118.7,4118.6,1e-08]
[1761669232291,7.60590455,4118.7,4118.6,1e-08]
[1761669232490,7.60590455,4118.7,4118.2,0.002]
[1761669232491,2.42836328,4118.0,4115.6,1.962704]
[1761669232801,0.91224999,4118.7,4116.2,1.5552]
[1761669233127,2.42814491,4118.4,4117.6,2.42854715]
[1761669233339,2.304,4118.3,4117.6,2.42854763]
[1761669233518,1.5552,4118.2,4117.6,2.42854763]
[1761669233828,3.98346169,4118.2,4117.5,2.4286512]
[1761669233991,1.5552,4118.2,4117.3,2.42875303]
[1761669234188,4.73119045,4118.3,4117.6,2.42855593]
[1761669234425,2.42831099,4118.1,4117.4,2.42871715]
[1761669234646,2.42826134,4118.2,4117.5,2.42864847]
[1761669234842,0.05,4117.9,4117.6,2.42856491]
[1761669235005,0.05,4117.9,4116.5,2.303]
[1761669235006,2.42882356,4117.3,4116.1,0.63967915]
[1761669235215,0.05,4117.9,4116.2,0.21948791]
[1761669235216,0.01,4117.4,4116.2,0.21948791]
[1761669235540,0.01,4117.4,4116.1,2.42948422]
[1761669235838,0.01,4117.4,4116.4,15.2715135]
[1761669236036,0.01,4117.4,4117.3,2.42877613]
[1761669238100,0.01,4117.4,4117.3,3.06845528]
[1761669238366,0.01,4117.4,4117.3,4.00826389]
[1761669238578,0.05,4117.9,4117.8,2.42848122]
[1761669238726,0.05,4117.9,4117.8,6.28468122]
[1761669238932,0.05,4117.9,4117.8,7.14486496]
[1761669240333,0.05,4117.9,4117.8,6.40548122]
[1761669240730,0.05,4117.9,4117.8,6.28468122]
[1761669240955,0.05,4117.9,4117.8,4.85028122]
[1761669241231,2.47846326,4117.9,4117.3,0.64605264]
[1761669241433,2.47846326,4117.9,4117.0,0.98220352]
[1761669241434,0.1208,4117.6,4117.0,0.76685264]
[1761669241737,0.1208,4117.6,4117.2,2.42879147]
[1761669241965,0.1208,4117.6,4117.2,2.42878896]
[1761669242230,0.1208,4117.6,4117.2,0.56245894]
[1761669242511,0.1208,4117.6,4117.5,2.42865816]
[1761669243098,0.1208,4117.6,4117.2,3.63733603]
[1761669243300,0.05,4117.9,4117.7,2.42850521]
[1761669243499,0.05,4117.9,4117.8,2.42848122]
[1761669243798,0.05,4117.9,4117.8,3.99014981]
[1761669244201,0.05,4117.9,4117.8,4.63433147]
[1761669244517,0.05,4117.9,4117.8,3.34409717]
[1761669245622,0.05,4117.9,4117.8,0.98290719]
[1761669245785,0.05,4117.9,4117.8,2.94271849]
[1761669246312,0.05,4117.9,4117.8,4.72448122]
[1761669246515,0.05,4117.9,4117.8,2.296]
[1761669247079,0.05,4117.9,4117.8,4.72448122]
[1761669247618,0.05,4117.9,4117.8,5.51654053]
[1761669247927,0.05,4117.9,4117.8,3.08805931]
[1761669248078,0.05,4117.9,4117.8,2.296]
[1761669248619,0.05,4117.9,4117.8,5.37119971]
[1761669248820,0.05,4117.9,4117.8,4.84528122]
[1761669249112,0.05,4117.9,4117.8,2.94262195]
[1761669249313,0.05,4117.9,4117.8,5.37110317]
[1761669249619,0.05,4117.9,4117.8,5.7235406]
[1761669250338,0.05,4117.9,4117.8,6.58564779]
[1761669250646,1e-08,4117.9,4117.8,7.6842446]
[1761669254130,1e-08,4117.9,4117.8,6.27327423]
[1761669254456,1e-08,4117.9,4117.8,7.2707406]
[1761669254942,1e-08,4117.9,4117.8,5.7155406]
[1761669255343,1e-08,4117.9,4117.8,6.3607002]
[1761669256045,1e-08,4117.9,4117.8,4.71648122]
[1761669256227,1e-08,4117.9,4117.8,4.74076603]
[1761669256421,1e-08,4117.9,4117.8,4.71648122]
[1761669256734,1e-08,4117.9,4117.8,4.83728122]
[1761669257117,1e-08,4117.9,4117.8,5.48256804]
[1761669257329,1e-08,4117.9,4117.8,7.82291273]
[1761669257863,1e-08,4117.9,4117.8,4.83728122]
[1761669258062,0.00920001,4118.4,4118.3,2.42818638]
[1761669258445,0.00920001,4118.4,4118.3,4.71418638]
[1761669261762,0.00920001,4118.4,4118.3,2.286]
[1761669262531,0.00920001,4118.4,4118.3,4.71418638]
[1761669263069,0.00920001,4118.4,4118.3,2.286]
[1761669263560,0.00920001,4118.4,4117.7,0.64528682]
[1761669263750,0.00920001,4118.4,4118.3,2.42818638]
[1761669263944,0.00920001,4118.4,4118.3,4.70818638]
[1761669264859,0.00920001,4118.4,4117.8,0.64528682]
[1761669265060,0.00920001,4118.4,4117.9,2.28]
[1761669265230,0.00920001,4118.4,4117.6,0.64528682]
[1761669265430,2.42818638,4118.3,4117.3,0.64528682]
[1761669265655,0.24373864,4118.2,4117.4,0.02428717]
[1761669265855,0.24373864,4118.2,4117.2,2.279]
[1761669265856,2.42836633,4118.0,4117.2,2.279]
[1761669266050,2.42836633,4118.0,4117.2,4.70782468]
[1761669266368,1.5552,4118.1,4117.2,4.70782468]
[1761669266369,1.5552,4118.1,4117.4,2.42868859]
[1761669266566,0.00920001,4118.4,4117.2,2.279]
[1761669266732,0.00920001,4118.4,4117.6,2.42858364]
[1761669266932,0.00920001,4118.4,4117.6,2.278]
[1761669267347,2.4373344,4118.4,4117.7,2.42852344]
[1761669267530,2.42819529,4118.3,4117.6,4.70658435]
[1761669267735,2.42830439,4118.1,4117.6,2.278]
[1761669268034,0.1208,4117.9,4117.3,2.278]
[1761669268376,0.1208,4117.4,4117.3,2.278]
[1761669268967,0.1208,4117.4,4117.3,4.70677613]
[1761669269268,0.1208,4117.7,4117.5,2.42863078]
[1761669269491,0.1208,4117.7,4117.4,2.4287065]
[1761669269771,0.00920001,4118.4,4117.3,2.278]
[1761669269971,0.1208,4118.3,4117.7,2.4285402]
[1761669270143,0.00920001,4118.4,4117.9,0.1208]
[1761669270472,0.13000001,4118.4,4118.1,2.42826498]
[1761669270770,0.13000001,4118.4,4118.2,4.70422636]
[1761669271067,0.13000001,4118.4,4118.2,4.70423905]
[1761669271670,0.13000001,4118.4,4118.2,2.276]
[1761669272366,0.13000001,4118.4,4118.2,4.70420033]
[1761669272547,0.13100001,4118.4,4118.2,4.70420033]
[1761669272731,0.13100001,4118.4,4118.2,2.276]